bitfinex-derivatives/quotes_ETHF0:USTF0_20250530
["timestamp","ask_amount","ask_price","bid_price","bid_amount"]
[1748619875927,2.09627,2603.4,2603.3,4.25376347]
[1748619876128,2.09627,2603.4,2603.3,0.00576347]
[1748619876328,2.09627,2603.4,2603.3,4.25376347]
[1748619877029,2.09627,2603.4,2603.3,0.00576347]
[1748619877331,1.92031,2603.3,2602.9,0.76821]
[1748619877635,3.2078,2603.1,2603.0,5.01619]
[1748619877831,3.97596,2603.1,2603.0,4.248]
[1748619878436,3.97596,2603.1,2603.0,5.5453]
[1748619879040,3.97596,2603.1,2603.0,4.248]
[1748619879630,3.2078,2603.1,2602.8,0.62286347]
[1748619879940,0.76822,2602.9,2602.8,1.94716347]
[1748619880235,0.76822,2602.9,2602.8,6.19516347]
[1748619880438,0.76821,2603.0,2602.8,6.96340347]
[1748619880634,0.76819,2603.0,2602.9,4.248]
[1748619880839,0.76815,2603.2,2603.0,0.76819]
[1748619881032,0.00576347,2603.3,2603.1,1.3243]
[1748619881235,0.00576347,2603.3,2603.2,0.76813]
[1748619881536,0.00576347,2603.3,2603.2,1.41623]
[1748619881734,3.2078,2603.7,2603.6,0.76801]
[1748619881933,3.2078,2603.7,2603.6,5.01601]
[1748619882435,4.16691,2604.3,2604.0,0.76788]
[1748619882647,4.16691,2604.3,2604.1,5.4738]
[1748619882940,4.16691,2604.3,2604.2,1.2258]
[1748619888336,4.16691,2604.3,2604.1,4.248]
[1748619888337,0.76784,2604.2,2604.1,4.248]
[1748619888646,0.76792,2603.9,2603.8,1.2375]
[1748619888842,0.76792,2603.9,2603.8,5.4855]
[1748619892144,0.95992,2603.9,2603.8,5.4855]
[1748619898644,0.95992,2603.9,2603.8,1.2375]
[1748619898849,0.95992,2603.9,2603.8,4.231]
[1748619898850,2.28492,2603.9,2603.8,4.231]
[1748619899048,2.89492,2603.9,2603.8,4.231]
[1748619899851,0.76801,2603.6,2603.5,38.716]
[1748619900051,0.76801,2603.6,2603.5,42.947]
[1748619900241,3.2078,2603.7,2603.3,0.6663]
[1748619900447,0.76813,2603.2,2603.1,1.37765]
[1748619900652,3.2078,2603.4,2603.2,0.76813]
[1748619900847,3.2078,2603.4,2603.3,0.7681]
[1748619901051,0.192,2603.9,2603.3,3.2078]
[1748619901352,0.76796,2603.8,2603.6,0.76798]
[1748619901540,0.76796,2603.8,2603.7,4.8405]
[1748619901942,0.76796,2603.8,2603.7,4.231]
[1748619902145,0.76796,2603.8,2603.4,0.6478]
[1748619902146,0.76804,2603.5,2603.4,0.6478]
[1748619902348,0.76804,2603.5,2603.4,4.8788]
[1748619902753,0.76804,2603.5,2603.4,0.6478]
[1748619902955,0.76804,2603.5,2603.4,4.8788]
[1748619903253,0.76813,2603.2,2603.1,1.2827]
[1748619903454,0.76813,2603.2,2603.1,5.5137]
[1748619904153,0.76812,2603.3,2603.1,6.28186]
[1748619904354,0.76812,2603.3,2603.2,1.3043]
[1748619904857,3.14781,2603.4,2603.0,1.2713]
[1748619905060,0.76813,2603.2,2603.1,4.232]
[1748619905251,3.14781,2603.4,2603.0,1.2713]
[1748619905252,0.76816,2603.1,2603.0,1.2713]
[1748619905452,0.76816,2603.1,2603.0,6.8076]
[1748619905652,0.76815,2603.2,2603.0,7.57579]
[1748619905853,3.2078,2603.3,2603.0,6.8076]
[1748619906347,0.76816,2603.1,2603.0,2.5756]
[1748619906557,0.76816,2603.1,2603.0,4.882]
[1748619908456,6.37807,2603.3,2603.0,4.882]
[1748619908457,3.97591,2603.3,2603.0,4.882]
[1748619908653,3.2078,2603.3,2603.2,0.76813]
[1748619908956,3.2078,2603.6,2603.5,0.76802]
[1748619909254,3.2078,2603.6,2603.5,5.00002]
[1748619910056,3.2078,2603.6,2603.5,5.00004]
[1748619911160,0.76799,2603.7,2603.5,5.00004]
[1748619911352,3.2078,2603.8,2603.5,4.232]
[1748619911552,3.97576,2603.8,2603.6,1.322]
[1748619911855,3.97576,2603.8,2603.7,4.232]
[1748619912157,0.76798,2603.7,2603.6,1.322]
[1748619912358,0.76798,2603.7,2603.6,5.554]
[1748619913049,3.2078,2603.8,2603.6,5.554]
[1748619913050,3.97577,2603.8,2603.6,5.554]
[1748619913250,3.2078,2603.8,2603.7,2.07988]
[1748619913860,3.97575,2603.8,2603.7,1.3119]
[1748619914163,3.2078,2603.8,2603.7,2.07988]
[1748619914459,3.97575,2603.8,2603.7,1.3119]
[1748619916362,3.2078,2603.8,2603.7,2.07988]
[1748619916964,0.76793,2603.9,2603.7,2.07988]
[1748619917154,0.76793,2603.9,2603.8,1.2844]
[1748619917858,3.2078,2604.1,2603.8,1.2844]
[1748619918055,0.76792,2603.9,2603.8,1.2844]
[1748619918255,0.95991,2604.0,2603.8,2.05235]
[1748619918462,0.192,2604.0,2603.9,0.76792]
[1748619918656,0.192,2604.0,2603.9,2.71762]
[1748619918852,3.2078,2604.1,2604.0,0.76789]
[1748619919057,3.2078,2604.1,2604.0,6.28429]
[1748619921259,3.97567,2604.1,2604.0,5.5164]
[1748619921460,3.97567,2604.1,2604.0,4.231]
[1748619921660,5.90417,2604.1,2604.0,4.231]
[1748619923565,0.76798,2603.7,2603.6,1.3395]
[1748619923765,0.76798,2603.7,2603.6,4.231]
[1748619924460,3.2078,2603.8,2603.6,4.99899]
[1748619924665,3.2078,2603.8,2603.6,4.231]
[1748619924861,3.2078,2603.8,2603.7,1.2442]
[1748619925455,3.2078,2603.8,2603.7,2.01218]
[1748619925659,3.97575,2603.8,2603.7,1.2442]
[1748619927064,3.2078,2603.8,2603.7,1.2442]
[1748619927364,3.2078,2603.8,2603.7,2.01218]
[1748619927766,0.76791,2604.0,2603.7,1.2442]
[1748619927968,0.76789,2604.0,2603.7,1.2442]
[1748619928163,3.2078,2604.1,2603.7,3.16416]
[1748619928368,3.2078,2604.1,2604.0,0.76789]
[1748619928559,3.2078,2604.1,2604.0,4.98289]
[1748619929160,3.2078,2604.1,2604.0,6.83599]
[1748619929459,3.97567,2604.1,2604.0,6.0681]
[1748619929670,3.2078,2604.1,2604.0,4.215]
[1748619929865,3.2078,2604.1,2603.5,1.8689]
[1748619929866,0.76798,2603.7,2603.5,1.8689]
[1748619930169,0.76798,2603.7,2603.6,4.215]
[1748619930669,2.02678,2603.7,2603.6,4.215]
[1748619930967,1.2588,2603.7,2603.6,4.215]
[1748619931157,2.02678,2603.7,2603.6,4.215]
[1748619931360,1.2588,2603.7,2603.6,4.98301]
[1748619931871,1.2588,2603.7,2603.6,4.215]
[1748619932169,3.97577,2603.8,2603.6,4.98301]
[1748619932368,3.2078,2603.8,2603.7,0.76798]
[1748619932565,3.2078,2603.8,2603.7,2.04088]
[1748619932861,2.2098,2603.8,2603.7,2.04088]
[1748619933067,0.7679,2604.0,2603.8,0.76793]
[1748619933270,0.7679,2604.0,2603.8,2.71073]
[1748619933568,5.1668,2604.1,2603.8,2.71073]
[1748619933569,5.1668,2604.1,2603.8,1.9428]
[1748619933870,5.93468,2604.1,2603.9,0.76791]
[1748619934067,5.93468,2604.1,2604.0,4.215]
[1748619934567,5.1668,2604.1,2604.0,4.215]
[1748619934768,3.2078,2604.1,2604.0,4.98289]
[1748619935369,3.97567,2604.1,2604.0,4.215]
[1748619935766,5.23487,2604.1,2604.0,4.215]
[1748619936268,0.7679,2604.0,2603.8,1.43784]
[1748619936469,0.76792,2603.9,2603.8,0.6699]
[1748619936669,1.9189,2604.0,2603.8,4.8849]
[1748619936974,2.21844,2604.2,2604.0,0.76787]
[1748619937359,1.4506,2604.2,2603.9,6.0831]
[1748619937565,2.21845,2604.2,2604.0,0.76788]
[1748619937769,1.4506,2604.2,2603.9,4.852]
[1748619937966,0.76789,2604.1,2603.9,5.61992]
[1748619938471,2.21846,2604.2,2604.0,0.76788]
[1748619939378,2.21846,2604.2,2604.0,0.76789]
[1748619939674,1.4506,2604.2,2604.0,0.76789]
[1748619939872,2.21844,2604.2,2604.0,0.76789]
[1748619940367,1.4506,2604.2,2603.9,4.852]
[1748619940574,0.76788,2604.1,2603.9,5.61991]
[1748619941472,2.21846,2604.2,2604.0,0.76789]
[1748619942375,2.21846,2604.2,2604.1,0.76787]
[1748619942668,2.21846,2604.2,2604.0,0.76787]
[1748619943475,0.76787,2604.1,2603.9,5.61992]
[1748619943868,1.4506,2604.2,2603.9,4.852]
[1748619944378,2.21846,2604.2,2604.0,0.76789]
[1748619944675,2.21846,2604.2,2603.9,4.852]
[1748619944676,1.4506,2604.2,2603.9,4.852]
[1748619944871,3.97567,2604.1,2604.0,4.215]
[1748619945271,5.28937,2604.1,2604.0,4.215]
[1748619946079,3.97567,2604.1,2604.0,4.215]
[1748619946278,3.97567,2604.1,2604.0,4.8812]
[1748619947574,5.25507,2604.1,2604.0,4.8812]
[1748619948078,5.25507,2604.1,2604.0,4.215]
[1748619948879,5.25507,2604.1,2604.0,4.98289]
[1748619949073,5.25507,2604.1,2604.0,4.215]
[1748619949274,5.25507,2604.1,2604.0,4.98289]
[1748619949577,5.25507,2604.1,2604.0,4.215]
[1748619950378,3.2078,2604.1,2604.0,4.215]
[1748619950581,3.2078,2604.1,2604.0,4.98289]
[1748619951378,3.97567,2604.1,2604.0,4.215]
[1748619951678,3.2078,2604.1,2604.0,4.98289]
[1748619952083,3.97567,2604.1,2604.0,4.215]
[1748619952275,3.97567,2604.1,2603.5,0.6277]
[1748619952583,0.76798,2603.7,2603.6,4.215]
[1748619952886,0.1915,2603.7,2603.6,4.98301]
[1748619953378,2.27461628,2605.1,2604.2,0.76784]
[1748619953576,3.2078,2604.6,2604.5,0.76775]
[1748619953779,3.2078,2604.6,2604.3,6.1114]
[1748619953780,5.1083,2605.0,2604.4,3.2078]
[1748619953974,3.2078,2605.0,2604.9,0.76763]
[1748619954172,3.2078,2605.0,2604.9,4.98263]
[1748619954377,1.2701,2605.3,2605.0,0.76758]
[1748619954680,2.03763,2605.3,2605.0,0.7676]
[1748619954879,1.2701,2605.3,2605.0,0.6414]
[1748619955086,3.2078,2605.5,2605.0,1.8964]
[1748619955579,0.76756,2605.2,2605.0,1.8964]
[1748619955776,1.2554,2605.4,2605.0,2.66399]
[1748619955978,1.2554,2605.4,2605.0,1.8964]
[1748619956182,0.76751,2605.3,2605.0,2.664]
[1748619956484,2.02289,2605.4,2605.0,2.664]
[1748619956781,1.2554,2605.4,2605.0,1.8964]
[1748619956981,0.76757,2605.1,2604.8,3.2078]
[1748619957176,0.76757,2605.1,2604.7,38.707]
[1748619957177,2.023,2605.0,2604.9,4.198]
[1748619961375,3.2078,2605.5,2605.1,0.76757]
[1748619961588,3.2078,2605.9,2605.3,1.91879]
[1748619961877,0.76741,2605.7,2605.4,5.5006]
[1748619962079,1.2278,2605.8,2605.4,5.5006]
[1748619962379,1.2278,2605.8,2605.4,1.3026]
[1748619962575,3.2078,2605.6,2605.5,4.198]
[1748619962772,0.76748,2605.4,2605.3,0.00576347]
[1748619963173,5.76748,2605.4,2605.3,0.00576347]
[1748619963378,1.99528,2605.4,2605.3,0.00576347]
[1748619964176,6.99528,2605.4,2605.3,0.00576347]
[1748619968582,1.91879,2605.3,2604.5,4.197]
[1748619968782,0.76774,2604.6,2604.5,4.197]
[1748619968983,0.76774,2604.6,2604.5,4.96475]
[1748619969184,0.76774,2604.6,2604.5,4.197]
[1748619969485,2.00821,2604.7,2604.6,0.76772]
[1748619969985,1.2405,2604.7,2604.5,4.197]
[1748619970188,0.76772,2604.6,2604.5,4.96472]
[1748619970381,2.00821,2604.7,2604.6,0.76772]
[1748619970681,0.76772,2604.6,2604.5,4.96473]
[1748619970880,0.76772,2604.6,2604.5,4.197]
[1748619971585,0.76778,2604.4,2604.3,1.39466347]
[1748619971787,5.30566,2604.5,2604.4,0.76778]
[1748619972085,0.76778,2604.4,2604.3,4.82386347]
[1748619972285,2.09788,2604.4,2604.3,4.82386347]
[1748619973188,0.76778,2604.4,2604.3,4.82386347]
[1748619974090,0.76778,2604.4,2604.3,6.12916347]
[1748619975081,0.1918,2604.5,2604.4,0.76778]
[1748619975383,0.1918,2604.5,2604.4,2.07308]
[1748619976692,0.1918,2604.5,2604.4,7.07308]
[1748619977394,0.00576347,2604.8,2604.7,0.76769]
[1748619977597,0.76758,2605.1,2604.8,0.76764]
[1748619977886,0.76756,2605.2,2604.9,1.287]
[1748619978081,0.76756,2605.2,2604.9,2.05461]
[1748619978286,0.76758,2605.1,2604.9,1.287]
[1748619978487,1.91871,2605.4,2604.9,1.287]
[1748619978690,0.76756,2605.2,2604.9,2.05461]
[1748619978892,0.76756,2605.2,2604.9,1.287]
[1748619979086,0.76758,2605.1,2604.9,1.287]
[1748619979490,0.76759,2605.1,2604.9,1.287]
[1748619979896,3.2078,2605.2,2604.9,1.287]
[1748619980195,0.7676,2605.0,2604.9,1.287]
[1748619980487,3.2078,2605.2,2604.8,0.6544]
[1748619980488,0.76763,2604.9,2604.8,0.6544]
[1748619980697,0.76769,2604.7,2604.6,0.6745]
[1748619980888,0.76772,2604.6,2604.5,0.613]
[1748619981089,0.76772,2604.6,2604.5,4.81]
[1748619981797,0.76772,2604.6,2604.5,0.613]
[1748619982098,0.76772,2604.6,2604.5,4.81]
[1748619982987,3.97552,2604.6,2604.5,4.81]
[1748619983591,0.76778,2604.4,2604.3,0.00576347]
[1748619984287,0.76795,2603.8,2603.7,42.894]
[1748619984487,1.91952,2604.3,2603.0,7.4058]
[1748619984488,0.76805,2603.5,2603.0,7.4058]
[1748619984693,3.97585,2603.5,2603.3,0.76808]
[1748619984996,0.76809,2603.4,2603.0,4.8683]
[1748619985192,2.10659,2603.4,2603.0,4.8683]
[1748619985397,2.10659,2603.4,2603.2,0.76812]
[1748619985601,0.7681,2603.3,2603.0,6.1108]
[1748619985800,0.76814,2603.2,2603.0,6.87898]
[1748619986095,0.76813,2603.2,2603.0,6.87898]
[1748619986395,0.76819,2603.0,2602.9,0.00576347]
[1748619986595,0.76819,2603.0,2602.9,4.18876347]
[1748619986902,0.76819,2603.0,2602.9,0.00576347]
[1748619987096,1.39449,2603.0,2602.9,0.00576347]
[1748619987396,1.4769,2603.1,2602.9,0.00576347]
[1748619987598,2.24507,2603.1,2602.9,0.00576347]
[1748619987798,2.24507,2603.1,2602.9,0.77397347]
[1748619987998,1.4769,2603.1,2602.9,0.00576347]
[1748619988196,2.24506,2603.1,2602.9,0.00576347]
[1748619988396,0.76819,2603.0,2602.9,4.18876347]
[1748619989392,2.24508,2603.1,2602.9,4.18876347]
[1748619989592,1.4769,2603.1,2602.9,4.18876347]
[1748619989793,0.76819,2603.0,2602.9,4.18876347]
[1748619991002,0.192,2603.1,2602.9,4.18876347]
[1748619991205,0.96016,2603.1,2603.0,0.76819]
[1748619991400,0.00576347,2603.5,2603.0,1.3187]
[1748619991614,0.76808,2603.4,2603.3,0.7681]
[1748619991899,0.76808,2603.4,2603.3,4.184]
[1748619993798,2.08708,2603.4,2603.3,4.184]
[1748619995003,0.76816,2603.1,2603.0,5.5027]
[1748619995204,0.76819,2603.0,2602.9,0.65506347]
[1748619995393,2.04809,2603.0,2602.9,4.18976347]
[1748619995705,2.04809,2603.0,2602.9,0.00576347]
[1748619996302,0.76818,2603.1,2603.0,0.76819]
[1748619996502,3.97596,2603.2,2602.9,1.23956347]
[1748619996802,0.76818,2603.1,2603.0,0.76818]
[1748619997103,0.76818,2603.1,2602.9,2.00775347]
[1748619997303,0.76818,2603.1,2603.0,0.76819]
[1748619997498,0.76818,2603.1,2603.0,1.2338]
[1748619998099,0.76807,2603.4,2603.2,0.76811]
[1748619998301,0.00576347,2603.5,2603.3,5.4976]
[1748619998507,0.76791,2604.0,2603.8,0.76794]
[1748619998807,3.97565,2604.2,2603.9,6.2655]
[1748619999008,3.97565,2604.2,2604.0,4.8334]
[1748619999205,3.97565,2604.2,2604.1,1.3126]
[1748619999503,8.2078,2604.2,2603.3,0.06993857]
[1748619999704,0.7681,2603.3,2603.2,4.185]
[1748620000810,1.2749,2603.5,2603.1,0.6139]
[1748620001107,0.7681,2603.3,2603.2,5.4976]
[1748620001308,1.2749,2603.5,2603.2,5.4976]
[1748620001505,0.7681,2603.3,2603.2,5.4976]
[1748620002906,0.76809,2603.4,2603.2,5.4976]
[1748620003106,1.2749,2603.5,2603.2,5.4976]
[1748620003308,1.2749,2603.5,2603.2,6.26572]
[1748620003612,1.2749,2603.5,2603.2,5.4976]
[1748620003812,0.7681,2603.3,2603.2,5.4976]
[1748620004113,0.76809,2603.4,2603.2,5.4976]
[1748620004309,1.2749,2603.5,2603.2,5.4976]
[1748620004507,0.76808,2603.4,2603.2,6.26571]
[1748620004701,1.2749,2603.5,2603.4,0.76807]
[1748620004907,0.76804,2603.5,2603.3,2.02339]
[1748620005109,0.76803,2603.6,2603.4,0.76806]
[1748620005309,3.2078,2603.7,2603.6,0.76801]
[1748620005515,3.2078,2603.7,2603.6,4.95301]
[1748620006413,3.97578,2603.7,2603.6,4.185]
[1748620007517,3.2078,2603.7,2603.6,4.95301]
[1748620007710,3.97578,2603.7,2603.6,4.185]
[1748620008117,3.2078,2603.7,2603.3,1.2553]
[1748620008320,0.76804,2603.5,2603.4,4.95206]
[1748620009124,0.76802,2603.6,2603.4,4.95206]
[1748620009325,0.76802,2603.6,2603.5,1.2597]
[1748620010515,0.76807,2603.5,2603.3,0.76809]
[1748620010716,0.76803,2603.6,2603.4,5.4712]
[1748620010916,3.2078,2603.7,2603.5,0.76804]
[1748620011116,3.97581,2603.7,2603.6,1.2872]
[1748620011413,0.76794,2603.9,2603.6,1.2872]
[1748620011722,0.76792,2603.9,2603.8,0.76795]
[1748620011916,1.91946,2604.4,2603.8,0.76795]
[1748620011917,3.2078,2604.4,2604.0,0.76788]
[1748620012117,0.76787,2604.1,2603.9,0.7679]
[1748620012326,0.76787,2604.1,2604.0,2.05509]
[1748620012625,5.12725,2604.4,2604.0,2.05509]
[1748620012822,0.76787,2604.1,2604.0,2.05509]
[1748620013016,5.12725,2604.4,2604.0,2.05509]
[1748620013319,0.76787,2604.1,2604.0,1.2872]
[1748620013521,0.76787,2604.1,2604.0,5.4712]
[1748620014916,0.76787,2604.1,2604.0,6.23909]
[1748620015422,2.07952,2604.3,2604.1,0.76787]
[1748620015620,0.76784,2604.2,2604.1,0.76787]
[1748620016424,0.76772,2604.6,2604.5,0.76773]
[1748620016719,0.76778,2604.4,2604.3,0.77354347]
[1748620017021,0.76778,2604.4,2604.3,4.94554347]
[1748620017216,0.76777,2604.5,2604.4,0.76777]
[1748620017420,2.01745,2604.6,2604.5,0.76775]
[1748620017923,0.76776,2604.5,2604.4,0.76776]
[1748620018419,1.2497,2604.6,2604.3,4.17776347]
[1748620018420,0.76778,2604.4,2604.3,0.00576347]
[1748620018721,0.76778,2604.4,2604.3,4.94557347]
[1748620019317,3.97558,2604.4,2604.3,4.17776347]
[1748620020826,3.97558,2604.4,2604.3,0.00576347]
[1748620021025,0.76789,2604.0,2603.9,0.6764]
[1748620021226,0.76788,2604.1,2604.0,0.76787]
[1748620021524,0.76786,2604.2,2604.1,0.76785]
[1748620021711,2.67822,2604.3,2604.2,0.76784]
[1748620021918,3.2078,2604.4,2604.3,0.76781]
[1748620022222,3.97558,2604.4,2604.3,4.171]
[1748620022619,5.21948,2604.4,2604.3,4.171]
[1748620023726,0.76786,2604.2,2604.0,1.29086347]
[1748620023918,0.76786,2604.2,2604.1,4.93886]
[1748620024319,0.76783,2604.3,2604.2,0.76782]
[1748620024522,0.00576347,2604.5,2604.2,1.2768]
[1748620024725,0.00576347,2604.5,2604.4,0.76778]
[1748620024925,0.77351347,2604.5,2604.4,0.76778]
[1748620025224,0.77351347,2604.5,2604.4,2.04458]
[1748620025417,0.77351347,2604.5,2604.4,2.66478]
[1748620025616,0.00576347,2604.5,2604.4,2.66478]
[1748620027321,0.00576347,2604.5,2604.0,0.00576347]
[1748620027524,0.76781,2604.3,2604.1,0.76784]
[1748620027717,5.12726,2604.4,2604.0,2.61256347]
[1748620027923,4.4673,2604.4,2604.1,4.171]
[1748620028117,0.76782,2604.3,2604.1,4.93884]
[1748620028326,0.76784,2604.2,2604.1,4.93884]
[1748620028625,0.76787,2604.1,2604.0,0.65926347]
[1748620028828,0.76787,2604.1,2604.0,4.83026347]
[1748620029028,0.76782,2604.3,2604.2,0.76783]
[1748620029328,3.97559,2604.4,2604.2,0.76784]
[1748620029528,0.76781,2604.3,2604.2,0.76784]
[1748620029728,5.12726,2604.4,2604.0,1.42715347]
[1748620030026,0.76785,2604.2,2604.1,4.171]
[1748620030521,0.76786,2604.1,2604.0,0.65926347]
[1748620030825,5.20506,2604.1,2604.0,4.17676347]
[1748620031032,6.3569,2604.1,2603.8,4.171]
[1748620031229,0.76792,2603.9,2603.8,4.171]
[1748620031730,2.06532,2603.9,2603.8,4.171]
[1748620032729,1.2974,2603.9,2603.8,4.93895]
[1748620032929,3.97569,2604.1,2604.0,0.76789]
[1748620033430,3.97567,2604.1,2604.0,0.76789]
[1748620033629,0.76789,2604.0,2603.9,2.6578]
[1748620034031,3.97568,2604.1,2603.9,2.6578]
[1748620034438,0.76789,2604.0,2603.9,0.6306]
[1748620034932,0.76789,2604.0,2603.9,1.39852]
[1748620035433,4.5286,2604.1,2603.9,0.6306]
[1748620035633,3.2078,2604.1,2604.0,0.76789]
[1748620035935,3.2078,2604.1,2603.9,2.6343]
[1748620036232,3.2078,2604.3,2604.2,0.76784]
[1748620036430,0.00576347,2604.5,2604.2,4.171]
[1748620036635,0.00576347,2604.5,2604.3,2.0036]
[1748620036838,0.00576347,2604.5,2604.4,0.76778]
[1748620037038,0.00576347,2604.5,2604.4,2.68348]
[1748620039737,0.77351347,2604.5,2604.4,1.9157]
[1748620039942,0.77351347,2604.5,2604.4,6.0867]
[1748620040149,0.00576347,2604.5,2604.4,6.85448]
[1748620040446,0.77351347,2604.5,2604.4,6.0867]
[1748620040849,0.77351347,2604.5,2604.4,6.85448]
[1748620041150,0.00576347,2604.5,2604.4,6.85448]
[1748620042747,0.76758,2605.1,2604.9,0.76763]
[1748620042940,0.76758,2605.1,2605.0,6.1519]
[1748620043141,0.76756,2605.2,2605.0,6.91949]
[1748620043342,0.76755,2605.2,2605.0,6.1519]
[1748620043547,0.76755,2605.2,2605.0,6.91948]
[1748620044447,0.76757,2605.1,2605.0,6.1519]
[1748620044644,1.91886,2605.2,2604.6,3.2078]
[1748620044947,0.76766,2604.8,2604.7,4.171]
[1748620046451,1.91926,2604.7,2604.2,2.566]
[1748620046650,6.39856,2604.7,2604.3,4.161]
[1748620046849,0.76775,2604.5,2604.4,0.76776]
[1748620047149,6.39856,2604.7,2604.3,5.4485]
[1748620047442,0.76772,2604.6,2604.5,0.76772]
[1748620047851,0.7677,2604.7,2604.4,4.161]
[1748620048042,0.76764,2604.9,2604.8,0.76764]
[1748620048247,3.2078,2605.3,2604.8,4.161]
[1748620048549,0.76756,2605.2,2605.0,0.76758]
[1748620048944,3.2078,2605.3,2605.0,1.2875]
[1748620049146,3.2078,2605.3,2604.9,1.42572]
[1748620049344,0.76758,2605.1,2604.9,1.42572]
[1748620049552,5.12683,2605.0,2604.8,4.16]
[1748620049749,0.76763,2604.9,2604.8,4.16]
[1748620049942,2.10383,2604.9,2604.8,4.16]
[1748620050944,0.76772,2604.6,2604.5,0.6581]
[1748620051149,0.76772,2604.6,2604.5,4.16]
[1748620051844,2.10392,2604.6,2604.5,4.16]
[1748620052852,0.76777,2604.5,2604.3,0.7678]
[1748620053052,0.76775,2604.5,2604.4,4.16]
[1748620053252,0.76781,2604.3,2604.2,2.6041]
[1748620053452,3.25551,2604.6,2604.2,7.53194]
[1748620053654,1.3362,2604.6,2604.2,6.7641]
[1748620053850,1.3362,2604.6,2604.2,7.53193]
[1748620054050,0.7678,2604.4,2604.3,0.76781]
[1748620054251,1.3362,2604.6,2604.2,7.53191]
[1748620054452,3.25551,2604.6,2604.2,6.24443]
[1748620054652,0.76781,2604.3,2604.2,5.4766]
[1748620055948,3.25551,2604.6,2604.2,6.24441]
[1748620056255,0.76781,2604.3,2604.2,6.24441]
[1748620056555,1.3362,2604.6,2604.3,0.76781]
[1748620056955,0.76779,2604.4,2604.2,6.24442]
[1748620057253,0.76774,2604.6,2604.4,0.76777]
[1748620057554,0.76777,2604.5,2604.3,0.7678]
[1748620057753,1.91917,2604.8,2604.2,6.24441]
[1748620057953,0.76779,2604.4,2604.2,6.24441]
[1748620058155,1.91932,2604.6,2604.2,5.4766]
[1748620058457,0.76781,2604.3,2604.2,1.3166]
[1748620058651,0.76781,2604.3,2604.2,5.4766]
[1748620058853,0.76781,2604.3,2604.2,0.6578]
[1748620059047,0.76781,2604.3,2604.2,4.16]
[1748620059451,0.76784,2604.2,2604.1,42.866]
[1748620062563,0.76795,2603.8,2603.7,0.72813857]
[1748620062759,0.76795,2603.8,2603.7,4.8192]
[1748620062949,0.76795,2603.8,2603.7,5.58718]
[1748620063154,0.76795,2603.8,2603.7,4.8192]
[1748620063455,0.76798,2603.7,2603.6,0.00576347]
[1748620063662,2.01098,2603.7,2603.6,0.00576347]
[1748620063961,2.01098,2603.7,2603.6,4.16676347]
[1748620065560,2.01098,2603.7,2603.6,0.00576347]
[1748620065762,2.01098,2603.7,2603.6,4.16676347]
[1748620068460,0.00576347,2604.0,2603.7,0.76798]
[1748620068656,0.76785,2604.2,2603.9,3.2078]
[1748620068856,0.76783,2604.3,2604.0,4.92888]
[1748620069061,0.76785,2604.2,2604.0,6.21318]
[1748620069263,0.76785,2604.2,2604.0,5.4453]
[1748620069563,0.76786,2604.1,2604.0,5.4453]
[1748620069862,1.91947,2604.4,2604.0,5.4453]
[1748620070158,1.91947,2604.4,2604.1,4.161]
[1748620070363,0.76786,2604.1,2604.0,1.2843]
[1748620070562,0.76792,2603.9,2603.8,1.3327]
[1748620070862,0.76798,2603.7,2603.6,0.00576347]
[1748620071163,0.76798,2603.7,2603.6,4.16676347]
[1748620071358,0.76796,2603.8,2603.6,4.93477347]
[1748620071559,0.76796,2603.8,2603.7,1.8906]
[1748620071758,1.3414,2604.0,2603.7,1.8906]
[1748620071960,0.76792,2603.9,2603.8,1.275]
[1748620072167,0.76792,2603.9,2603.8,4.161]
[1748620073464,0.76795,2603.8,2603.7,0.6156]
[1748620073666,0.76795,2603.8,2603.7,4.7766]
[1748620075362,0.76795,2603.8,2603.7,0.6156]
[1748620075566,0.76795,2603.8,2603.7,4.7766]
[1748620076263,0.76798,2603.7,2603.6,0.00576347]
[1748620076456,0.76798,2603.7,2603.6,4.15576347]
[1748620077469,1.274,2603.9,2603.6,4.15576347]
[1748620077665,0.76798,2603.7,2603.6,5.42356347]
[1748620077868,0.76798,2603.7,2603.6,6.19157347]
[1748620078369,0.76794,2603.9,2603.8,0.76793]
[1748620078664,4.4898,2604.2,2603.6,10.55139347]
[1748620078875,4.4898,2604.2,2603.8,0.76793]
[1748620079061,4.4898,2604.2,2603.6,9.28359347]
[1748620079062,0.76792,2604.0,2603.9,2.65562]
[1748620079261,3.2078,2604.6,2604.1,0.76785]
[1748620079262,5.12714,2604.6,2604.1,0.76785]
[1748620079463,3.2078,2604.6,2604.0,0.6655]
[1748620079769,0.76784,2604.2,2604.1,2.03564]
[1748620079968,0.76783,2604.3,2604.2,0.76784]
[1748620080172,3.2078,2604.6,2604.2,1.3316]
[1748620080371,0.7678,2604.4,2604.3,4.151]
[1748620080670,0.7678,2604.4,2604.3,5.4826]
[1748620080857,3.2078,2604.6,2604.3,5.4826]
[1748620081262,3.2078,2604.6,2604.4,0.6199]
[1748620081562,3.2078,2604.6,2604.5,0.76775]
[1748620082365,3.2078,2604.6,2604.4,0.6199]
[1748620082569,3.2078,2605.0,2604.4,0.6199]
[1748620082874,0.7677,2604.7,2604.5,0.76772]
[1748620083075,0.7677,2604.7,2604.6,0.6234]
[1748620083367,0.76769,2604.8,2604.6,1.39112]